fUSD/lending_fUSD_20251110
["ID","MTS","AMOUNT","RATE_DAILY","PERIOD"]
[393500426,1762732876677,8528.08912082,0.00020087,60]
[393500427,1762733055881,1972.23,0.00039289,60]
[393500428,1762733358132,-160.99,0.00020187,2]
[393500429,1762733358154,-250.0,0.00020187,2]
[393500430,1762733358175,-234.86,0.00020187,2]
[393500431,1762733358198,-253.71788767,0.00022106,2]
[393500432,1762733358220,-153.07498458,0.00022206,2]
[393500439,1762733432495,-300.0,0.00022206,2]
[393500440,1762733432504,-195.0,0.00022206,2]
[393500441,1762733432514,-171.0,0.00022206,2]
[393500442,1762733432525,-79.0,0.00022206,2]
[393500443,1762733432535,-250.0,0.00022206,2]
[393500444,1762733432544,-318.20713335,0.00024426,2]
[393500445,1762733432554,-234.86,0.00026676,2]
[393500446,1762733432563,-141.07640524,0.00033165,2]
[393500447,1762733432628,-93.78359476,0.00033165,2]
[393500448,1762733432638,-170.43,0.00034539,30]
[393500449,1762733432648,-500.0,0.00034648,2]
[393500450,1762733432658,-1600.0,0.00034745,3]
[393500451,1762733432667,-574.419,0.00034747,39]
[393500452,1762733432677,-385.65475817,0.00034747,7]
[393500453,1762733432686,-3604.13145338,0.00034748,2]
[393500475,1762733438356,-287.382,0.00034053,2]
[393500476,1762733438366,-38.48872973,0.00034748,2]
[393500477,1762733438524,-9149.1643358,0.00034748,2]
[393500478,1762733438536,-1049.2944,0.00034748,2]
[393500508,1762733440483,-1272.08668257,0.00034748,2]
[393500514,1762733443407,-14291.90819692,0.00034748,2]
[393500516,1762733443602,-723.94605047,0.00034748,2]
[393500517,1762733443735,-31377.0,0.00034748,2]
[393500518,1762733443749,-789.44390463,0.00034748,2]
[393500519,1762733443760,-500.0,0.00034748,2]
[393500521,1762733446675,-1262.18024238,0.00034748,2]
[393500568,1762733525437,600.0,0.00039289,120]
[393500569,1762733680908,576.78,0.00039289,120]
[393500570,1762733681143,576.78,0.00039289,120]
[393500571,1762733681376,576.78,0.00039289,120]
[393500572,1762733681636,576.78,0.00039289,120]
[393500573,1762733681893,576.78,0.00039289,120]
[393500574,1762733682148,576.78,0.00039289,120]
[393500575,1762733682427,576.78,0.00039289,120]
[393500576,1762733682832,576.78,0.00039289,120]
[393500577,1762733683259,576.78,0.00039289,120]
[393500578,1762733683506,576.78,0.00039289,120]
[393500579,1762733683766,576.78,0.00039289,120]
[393500580,1762733684002,576.78,0.00039289,120]
[393500581,1762733684246,576.78,0.00039289,120]
[393500582,1762733684506,576.78,0.00039289,120]
[393500583,1762733684755,576.78,0.00039289,120]
[393500584,1762733685023,576.78,0.00039289,120]
[393500585,1762733685292,576.78,0.00039289,120]
[393500586,1762733685533,576.78,0.00039289,120]
[393500587,1762733685798,576.78,0.00039289,120]
[393500588,1762733686037,576.78,0.00039289,120]
[393500589,1762733686284,576.78,0.00039289,120]
[393500590,1762733686535,576.78,0.00039289,120]
[393500591,1762733686773,576.78,0.00039289,120]
[393500592,1762733687018,576.91,0.00039289,120]
[393500593,1762733821167,231.5,0.00039289,60]
[393500594,1762733825331,270.93732662,0.00039289,120]
[393500595,1762733884818,8000.0,0.0002,7]
[393500596,1762733888535,195.0,0.00022,120]
[393500597,1762733888664,195.0,0.00021,120]
[393500598,1762733922987,500.0,0.00039289,120]
[393500599,1762733923170,500.0,0.00039289,120]
[393500600,1762733923415,500.0,0.00039289,120]
[393500601,1762734308122,3514283.83171353,0.00018,2]
[393500602,1762734413670,28798.96621503,0.000162,5]
[393500612,1762734514906,477704.27797578,0.00015,3]
[393500614,1762734547143,-484.0,0.00019999,2]
[393500615,1762734547166,-300.0,0.00019999,2]
[393500616,1762734547189,-1905.01196779,0.0002,7]
[393500643,1762734631507,-90094.98803221,0.0002,7]
[393500645,1762734631518,-250.0,0.00021,2]
[393500647,1762734631533,-476.9009738,0.00021886,2]
[393500649,1762734631544,-292.30209012,0.000219,2]
[393500651,1762734631554,-100000.0,0.00022,7]
[393500652,1762734631565,-250.0,0.00022,2]
[393500653,1762734631579,-292.30209008,0.00023821,2]
[393500654,1762734631588,-13674.48590084,0.00025,7]
[393500656,1762734631603,-32954.50409916,0.00025,7]
[393500658,1762734631613,-292.30209008,0.00025742,2]
[393500660,1762734631623,-292.30209008,0.00027663,2]
[393500662,1762734631633,-292.30209008,0.00029584,2]
[393500664,1762734631642,-331.1900776,0.0003,20]
[393500666,1762734631651,-3312.72902594,0.0003,5]
[393500668,1762734631661,-292.30209008,0.00031506,2]
[393500670,1762734631672,-459.535,0.00032217,31]
[393500672,1762734631681,-292.30209008,0.00033427,2]
[393500674,1762734631691,-15452.51086447,0.00034648,2]
[393500676,1762734631703,-26703.97653553,0.00034648,2]
[393500678,1762734631713,-500.0,0.00034648,2]
[393500680,1762734631723,-500.0,0.00034713,2]
[393500682,1762734631734,-435.08,0.00034803,2]
[393500684,1762734631744,-1125.87835686,0.00035,60]
[393500686,1762734631753,-292.30209008,0.00035348,2]
[393500688,1762734631763,-904.41,0.00035894,5]
[393500690,1762734631772,-86673.98346771,0.00036,2]
[393500691,1762734631784,-327.827745,0.00036,2]
[393500692,1762734631797,-1115.5,0.00036,2]
[393500859,1762734637568,-28100.90927416,0.00036,2]
[393500860,1762734637578,-153.17754681,0.00036024,2]
[393500861,1762734637588,-882.14,0.00036124,2]
[393500862,1762734637597,-862.66,0.00036152,5]
[393500863,1762734637612,-500.0,0.00036458,120]
[393500864,1762734637621,-891.36,0.00036458,5]
[393500865,1762734637631,-213.08,0.0003654,120]
[393500866,1762734637640,-880.62,0.00036816,5]
[393500867,1762734637651,-821.725,0.00036929,2]
[393500868,1762734637660,-6478.0,0.00036929,2]
[393500869,1762734637671,-7450.2644401,0.00036968,2]
[393500870,1762734637684,-200.0,0.0003702,2]
[393500871,1762734637694,-150.0,0.00037149,2]
[393500872,1762734637703,-1000.0,0.00037242,2]
[393500873,1762734637713,-292.30209008,0.00037269,2]
[393500874,1762734637722,-868.57,0.00037346,5]
[393500875,1762734637732,-999.0,0.00037363,3]
[393500876,1762734637741,-882.14,0.00037479,2]
[393500877,1762734637752,-871.71,0.00037544,30]
[393500878,1762734637762,-1000.0,0.00037818,2]
[393500879,1762734637772,-817.72274266,0.00037958,5]
[393500880,1762734637781,-862.91,0.00037974,30]
[393500881,1762734637792,-862.91,0.00037974,30]
[393500882,1762734637802,-862.91,0.00037974,30]
[393500883,1762734637811,-862.91,0.00037974,30]
[393500884,1762734637821,-164.0,0.00038,30]
[393500885,1762734637831,-24296.6134866,0.00038014,4]
[393500886,1762734637840,-152.0,0.0003802,3]
[393500887,1762734637850,-5000.0,0.00038024,2]
[393500889,1762734637860,-507.0,0.0003807,20]
[393500893,1762734637871,-170.43,0.00038175,30]
[393500896,1762734637881,-862.91,0.00038248,30]
[393500898,1762734637890,-862.91,0.00038248,30]
[393500901,1762734637899,-222.03,0.00038254,2]
[393500903,1762734637908,-507.0,0.00038463,20]
[393500905,1762734637917,-796.79752767,0.00038522,30]
[393500909,1762734637930,-66.11247233,0.00038522,30]
[393500912,1762734637939,-862.91,0.00038522,30]
[393500914,1762734637948,-106.84512767,0.00038522,2]
[393500929,1762734639546,-2269.60905973,0.00038522,2]
[393500930,1762734639604,-1257.85400588,0.00038522,2]
[393500931,1762734639621,-443.71895813,0.00038586,2]
[393500932,1762734639631,-937.72806019,0.00038586,10]
[393500933,1762734639643,-353.24514879,0.00038586,10]
[393500934,1762734639654,-1000.0,0.00038597,2]
[393500935,1762734639663,-181.0,0.000386,2]
[393500936,1762734639674,-164.0,0.0003863,90]
[393500937,1762734639683,-443.71895812,0.00038653,2]
[393500938,1762734639693,-1087.8115798,0.00038677,4]
[393500939,1762734639877,-5265.00900001,0.00038677,4]
[393500945,1762734643055,-17943.79290679,0.00038677,4]
[393500946,1762734643064,-145779.68092,0.00038687,4]
[393500947,1762734643074,-16556.2309007,0.00038687,4]
[393500948,1762734643086,-500.0,0.00038696,7]
[393500949,1762734643095,-199.0,0.00038696,7]
[393500950,1762734643105,-500.0,0.00038696,30]
[393500951,1762734643115,-500.0,0.00038696,120]
[393500952,1762734643127,-261225.69020244,0.00038697,2]
[393500953,1762734643137,-229.36001745,0.00038698,2]
[393500954,1762734643146,-443.71895812,0.0003872,2]
[393500955,1762734643155,-162.4566047,0.0003878,7]
[393500956,1762734643164,-443.71895812,0.00038787,2]
[393500958,1762734643174,-862.91,0.00038796,30]
[393500960,1762734643183,-862.91,0.00038796,30]
[393500962,1762734643192,-882.14,0.00038833,2]
[393500964,1762734643201,-443.71895812,0.00038854,2]
[393500966,1762734643210,-507.0,0.00038855,20]
[393500968,1762734643220,-571.81722,0.000389,2]
[393500970,1762734643229,-168.0,0.00038907,2]
[393500973,1762734643240,-443.71895812,0.00038922,2]
[393500976,1762734643250,-200.0,0.00038965,20]
[393500978,1762734643259,-443.71895812,0.00038989,2]
[393500980,1762734643268,-48593.2269732,0.0003899,4]
[393500982,1762734643277,-19315.6027175,0.0003899,4]
[393500984,1762734643287,-151.0,0.0003899,120]
[393500986,1762734643296,-151.0,0.0003899,120]
[393500988,1762734643305,-165506.9327672,0.00039,2]
[393500990,1762734643315,-510.78736725,0.00039,120]
[393500992,1762734643324,-1624.606195,0.00039,120]
[393500994,1762734643334,-100895.81195904,0.00039,2]
[393500996,1762734643344,-151.0,0.00039,120]
[393500998,1762734643353,-151.0,0.00039,120]
[393501000,1762734643363,-151.0,0.00039,15]
[393501002,1762734643373,-151.0,0.00039,30]
[393501004,1762734643382,-150.0,0.00039033,7]
[393501006,1762734643392,-166.67,0.00039034,2]
[393501008,1762734643400,-443.71895812,0.00039056,2]
[393501010,1762734643409,-24296.6134866,0.00039069,4]
[393501012,1762734643419,-2759.37181679,0.00039069,4]
[393501013,1762734643428,-862.91,0.0003907,30]
[393501014,1762734643437,-862.91,0.0003907,30]
[393501015,1762734643446,-151.0,0.00039079,120]
[393501016,1762734643455,-24296.6134866,0.0003908,4]
[393501017,1762734643465,-11037.4872672,0.0003908,4]
[393501018,1762734643475,-500.0,0.00039088,120]
[393501019,1762734643486,-58518.20820195,0.0003909,30]
[393501020,1762734643495,-478.20968403,0.0003909,30]
[393501021,1762734643504,-2000.0,0.00039093,3]
[393501022,1762734643514,-443.71895812,0.00039123,2]
[393501023,1762734643524,-1000.0,0.00039127,7]
[393501024,1762734643538,-964.83330762,0.00039177,7]
[393501025,1762734643548,-893.85465509,0.0003918,120]
[393501026,1762734643558,-5518.74363358,0.0003918,4]
[393501027,1762734643569,-443.71895812,0.0003919,2]
[393501028,1762734643582,-292.30209008,0.0003919,2]
[393501029,1762734643591,-352.88166277,0.000392,120]
[393501030,1762734643603,-1000.0,0.00039233,21]
[393501031,1762734643614,-300.0,0.00039247,10]
[393501032,1762734643624,-300.0,0.00039247,10]
[393501033,1762734643634,-300.0,0.00039247,10]
[393501034,1762734643644,-507.0,0.00039248,20]
[393501035,1762734643653,-150.0,0.00039254,7]
[393501036,1762734643662,-150.0,0.00039254,7]
[393501037,1762734643671,-150.0,0.00039254,7]
[393501038,1762734643681,-150.0,0.00039254,2]
[393501039,1762734643691,-155.751926,0.00039259,120]
[393501040,1762734643701,-151.0,0.00039259,120]
[393501041,1762734643710,-24296.6134866,0.00039259,4]
[393501042,1762734643720,-2759.37181679,0.00039259,4]
[393501043,1762734643730,-2759.37181679,0.00039263,4]
[393501044,1762734643740,-2000.0,0.00039264,120]
[393501045,1762734643750,-500.0,0.00039264,120]
[393501046,1762734643759,-2759.37181679,0.00039268,4]
[393501047,1762734643770,-24296.6134866,0.0003927,4]
[393501048,1762734643780,-2759.37181679,0.0003927,4]
[393501049,1762734643789,-205.88555731,0.00039272,7]
[393501050,1762734643799,-500.0,0.00039273,5]
[393501051,1762734643808,-500.0,0.00039273,5]
[393501052,1762734643826,-288.21779311,0.00039273,5]
[393501053,1762734643836,-500.0,0.00039273,5]
[393501054,1762734643847,-433.21534504,0.00039273,5]
[393501055,1762734643857,-473.21088675,0.00039273,5]
[393501056,1762734643867,-501.90516323,0.00039273,5]
[393501057,1762734643877,-500.0,0.00039273,5]
[393501058,1762734643887,-500.0,0.00039273,5]
[393501059,1762734643897,-503.10126105,0.00039273,5]
[393501060,1762734643907,-500.0,0.00039273,5]
[393501061,1762734643916,-500.0,0.00039273,5]
[393501062,1762734643926,-500.0,0.00039273,5]
[393501063,1762734643935,-311.4094349,0.00039273,5]
[393501064,1762734643944,-757.32198117,0.00039273,5]
[393501065,1762734643955,-2759.37181679,0.00039278,4]
[393501066,1762734644167,-2759.37181679,0.00039279,4]
[393501067,1762734644178,-158.475943,0.0003928,60]
[393501068,1762734644188,-24296.6134866,0.0003928,4]
[393501069,1762734644198,-5518.74363358,0.0003928,4]
[393501070,1762734644207,-157.0,0.00039288,5]
[393501071,1762734644216,-150.0,0.00039288,7]
[393501072,1762734644228,-150.0,0.00039288,7]
[393501073,1762734644238,-150.0,0.00039288,7]
[393501074,1762734644248,-150.0,0.00039288,7]
[393501075,1762734644258,-150.0,0.00039288,7]
[393501076,1762734644268,-150.0,0.00039288,7]
[393501077,1762734644279,-150.0,0.00039288,7]
[393501078,1762734644288,-150.0,0.00039288,7]
[393501079,1762734644298,-150.0,0.00039288,7]
[393501080,1762734644309,-150.0,0.00039288,7]
[393501081,1762734644319,-150.0,0.00039288,7]
[393501082,1762734644329,-150.0,0.00039288,7]
[393501083,1762734644339,-150.0,0.00039288,7]
[393501084,1762734644349,-150.0,0.00039288,7]
[393501085,1762734644358,-150.0,0.00039288,7]
[393501086,1762734644368,-150.0,0.00039288,7]
[393501087,1762734644379,-150.0,0.00039288,7]
[393501088,1762734644389,-150.0,0.00039288,7]
[393501089,1762734644398,-150.0,0.00039288,7]
[393501090,1762734644408,-150.0,0.00039288,7]
[393501091,1762734644418,-500.0,0.00039288,7]
[393501092,1762734644429,-500.0,0.00039288,7]
[393501093,1762734644438,-500.0,0.00039288,7]
[393501094,1762734644447,-500.0,0.00039288,7]
[393501095,1762734644456,-500.0,0.00039288,7]
[393501096,1762734644465,-547.11,0.00039288,7]
[393501097,1762734644475,-500.0,0.00039288,120]
[393501098,1762734644484,-500.0,0.00039288,120]
[393501099,1762734644493,-500.0,0.00039288,120]
[393501100,1762734644502,-243.19,0.00039288,120]
[393501101,1762734644512,-150.0,0.00039288,20]
[393501102,1762734644524,-150.0,0.00039288,7]
[393501103,1762734644534,-150.0,0.00039288,7]
[393501104,1762734644543,-150.0,0.00039288,7]
[393501105,1762734644553,-150.0,0.00039288,7]
[393501106,1762734644563,-150.0,0.00039288,7]
[393501107,1762734644572,-150.0,0.00039288,7]
[393501108,1762734644585,-150.0,0.00039288,7]
[393501109,1762734644596,-150.0,0.00039288,7]
[393501110,1762734644606,-150.0,0.00039288,7]
[393501111,1762734644615,-150.0,0.00039288,7]
[393501112,1762734644626,-150.0,0.00039288,7]
[393501113,1762734644635,-150.0,0.00039288,7]
[393501114,1762734644644,-150.0,0.00039288,7]
[393501115,1762734644653,-150.0,0.00039288,7]
[393501116,1762734644662,-150.0,0.00039288,7]
[393501117,1762734644671,-150.0,0.00039288,7]
[393501118,1762734644680,-150.0,0.00039288,7]
[393501119,1762734644689,-150.0,0.00039288,7]
[393501120,1762734644701,-150.0,0.00039288,7]
[393501121,1762734644710,-150.0,0.00039288,7]
[393501122,1762734644719,-150.0,0.00039288,7]
[393501123,1762734644728,-150.0,0.00039289,7]
[393501124,1762734644738,-150.0,0.00039289,7]
[393501125,1762734644747,-150.0,0.00039289,7]
[393501126,1762734644756,-150.0,0.00039289,7]
[393501127,1762734644765,-150.0,0.00039289,7]
[393501128,1762734644775,-150.0,0.00039289,7]
[393501129,1762734644784,-150.0,0.00039289,7]
[393501130,1762734644794,-150.0,0.00039289,7]
[393501131,1762734644804,-150.0,0.00039289,7]
[393501132,1762734644813,-150.0,0.00039289,7]
[393501133,1762734644822,-3634.30819328,0.00039289,2]
[393501134,1762734644831,-3634.30819328,0.00039289,2]
[393501135,1762734644841,-3634.30819328,0.00039289,2]
[393501136,1762734644851,-3634.30819328,0.00039289,2]
[393501137,1762734644860,-150.0,0.00039289,7]
[393501138,1762734644869,-150.0,0.00039289,7]
[393501139,1762734644880,-150.0,0.00039289,7]
[393501140,1762734644890,-150.0,0.00039289,7]
[393501141,1762734644899,-150.0,0.00039289,7]
[393501142,1762734644908,-150.0,0.00039289,7]
[393501143,1762734644918,-150.0,0.00039289,7]
[393501144,1762734644927,-250.0,0.00039289,60]
[393501145,1762734644936,-152.20105238,0.00039289,120]
[393501146,1762734644946,-259.72481455,0.00039289,7]
[393501147,1762734644955,-150.0,0.00039289,7]
[393501148,1762734644964,-150.0,0.00039289,7]
[393501149,1762734644973,-150.0,0.00039289,7]
[393501150,1762734644982,-150.0,0.00039289,7]
[393501151,1762734644993,-150.0,0.00039289,7]
[393501152,1762734645002,-234.18669343,0.00039289,7]
[393501153,1762734645012,-150.0,0.00039289,7]
[393501154,1762734645022,-150.0,0.00039289,7]
[393501155,1762734645033,-150.0,0.00039289,7]
[393501156,1762734645045,-225.52,0.00039289,60]
[393501157,1762734645054,-176.66736621,0.00039289,2]
[393501158,1762734645063,-176.66736621,0.00039289,2]
[393501159,1762734645074,-176.66736621,0.00039289,2]
[393501160,1762734645084,-1200.60566321,0.00039289,29]
[393501161,1762734645093,-11104361.56761092,0.0003929,7]
[393501162,1762734646104,-167.69652945,0.00038598,15]
[393501163,1762734646113,-2887.62314333,0.0003929,7]
[393501275,1762734725308,600.0,0.0003929,120]
[393501277,1762735025372,326.24267342,0.0003926,120]
[393501278,1762735249072,500.0,0.00039259,120]
[393501279,1762735249322,500.0,0.00039259,120]
[393501280,1762735249564,500.0,0.00039259,120]
[393501281,1762735249840,500.0,0.00039259,120]
[393501282,1762735250087,500.0,0.00039259,120]
[393501283,1762735250341,510.86,0.00039259,120]
[393501311,1762735771109,-182.50894319,0.00019457,2]
[393501312,1762735771131,-155.15,0.00019457,2]
[393501313,1762735771152,-155.15,0.00020441,2]
[393501314,1762735771173,-155.15,0.00021425,2]
[393501315,1762735771194,-155.15,0.00022409,2]
[393501316,1762735771214,-155.15,0.00023393,2]
[393501317,1762735771234,-155.15,0.00024377,2]
[393501318,1762735771253,-155.15,0.0002536,2]
[393501343,1762735831857,-155.15,0.00026344,2]
[393501344,1762735831867,-155.15,0.00027328,2]
[393501345,1762735831877,-171.99,0.00027528,2]
[393501346,1762735831886,-150.0,0.00028,2]
[393501347,1762735831896,-155.15,0.00028312,2]
[393501348,1762735831905,-502.3,0.00028312,2]
[393501349,1762735831915,-181.28,0.00029102,2]
[393501350,1762735831925,-155.15,0.00029296,2]
[393501351,1762735831935,-155.15,0.0003028,2]
[393501352,1762735831946,-155.15,0.00031264,2]
[393501353,1762735831959,-150.0,0.000316,30]
[393501354,1762735831969,-155.15,0.00032248,2]
[393501355,1762735831980,-155.15,0.00033232,2]
[393501356,1762735831998,-518.73,0.00033511,2]
[393501357,1762735832012,-155.15,0.00034215,2]
[393501358,1762735832023,-159.0,0.000348,45]
[393501359,1762735832034,-159.99,0.000348,30]
[393501360,1762735832045,-501.0,0.00035,15]
[393501361,1762735832056,-155.15,0.00035199,2]
[393501362,1762735832077,-155.15,0.00036183,2]
[393501363,1762735832088,-260.63,0.00036212,2]
[393501364,1762735832103,-150.0,0.00036252,2]
[393501365,1762735832115,-410.35,0.00036259,120]
[393501366,1762735832127,-250.0,0.00036274,2]
[393501367,1762735832138,-1000.0,0.00036285,2]
[393501368,1762735832148,-300.0,0.00036374,3]
[393501369,1762735832159,-1600.0,0.00036374,3]
[393501370,1762735832169,-5000.0,0.00036375,2]
[393501371,1762735832180,-999.0,0.00036376,3]
[393501372,1762735832190,-205.27,0.000364,60]
[393501373,1762735832200,-217.31,0.0003655,60]
[393501374,1762735832210,-217.31,0.0003665,60]
[393501375,1762735832219,-367.628,0.0003665,46]
[393501376,1762735832229,-160.0,0.000368,60]
[393501377,1762735832239,-160.0,0.000368,60]
[393501378,1762735832249,-863.25,0.0003692,30]
[393501379,1762735832258,-919.735,0.00036934,2]
[393501380,1762735832268,-155.15,0.00037167,2]
[393501381,1762735832277,-180.18,0.00037328,2]
[393501383,1762735832287,-153.0,0.00037339,2]
[393501385,1762735832297,-153.0,0.00037351,2]
[393501386,1762735832307,-500.0,0.00037662,2]
[393501388,1762735832316,-500.0,0.00037973,15]
[393501390,1762735832326,-500.0,0.00037973,15]
[393501392,1762735832336,-500.0,0.00037973,15]
[393501394,1762735832348,-500.0,0.00037973,15]
[393501396,1762735832358,-500.0,0.00037973,15]
[393501397,1762735832367,-448.36010935,0.00037973,15]
[393501399,1762735832376,-861.84,0.00037975,5]
[393501401,1762735832385,-869.45,0.00037975,5]
[393501403,1762735832395,-532.98,0.00037975,30]
[393501405,1762735832404,-532.98,0.00037975,30]
[393501406,1762735832413,-532.98,0.00037975,30]
[393501408,1762735832422,-532.98,0.00037975,30]
[393501410,1762735832433,-1000.0,0.00038,15]
[393501412,1762735832443,-503.0,0.00038075,20]
[393501414,1762735832453,-155.15,0.00038151,2]
[393501416,1762735832463,-870.01,0.00038223,5]
[393501418,1762735832472,-532.98,0.00038249,30]
[393501420,1762735832483,-532.98,0.00038249,30]
[393501421,1762735832492,-503.0,0.00038468,20]
[393501423,1762735832501,-532.98,0.00038523,30]
[393501425,1762735832510,-532.98,0.00038523,30]
[393501427,1762735832518,-160.0,0.000386,90]
[393501429,1762735832527,-168.0,0.00038795,2]
[393501431,1762735832535,-532.98,0.00038797,30]
[393501432,1762735832545,-532.98,0.00038797,30]
[393501434,1762735832558,-503.0,0.0003886,20]
[393501435,1762735832568,-309.5644,0.000389,2]
[393501436,1762735832578,-200.0,0.0003897,20]
[393501437,1762735832588,-162.4566047,0.00038978,7]
[393501438,1762735832599,-870.28072212,0.00038999,2]
[393501439,1762735832610,-547.89062058,0.00039,120]
[393501440,1762735832620,-64703.97985089,0.00039,5]
[393501441,1762735832629,-241.27233697,0.00039,2]
[393501442,1762735832640,-160.0,0.00039,29]
[393501443,1762735832651,-160.0,0.00039,120]
[393501444,1762735832661,-504.74904936,0.00039,120]
[393501445,1762735832671,-1000.0,0.00039,20]
[393501446,1762735832680,-221.84453216,0.00039018,2]
[393501447,1762735832689,-532.98,0.00039071,30]
[393501448,1762735832699,-532.98,0.00039071,30]
[393501449,1762735832710,-1453.6312,0.00039094,3]
[393501450,1762735832719,-2240.0,0.00039097,5]
[393501451,1762735832729,-215.29618191,0.000391,120]
[393501452,1762735832739,-2221.04894736,0.00039159,2]
[393501453,1762735832749,-167.69652945,0.00039159,15]
[393501454,1762735832759,-1337.22837754,0.00039159,11]
[393501455,1762735832769,-215.2961819,0.00039159,120]
[393501456,1762735832778,-1000.0,0.00039159,2]
[393501457,1762735832788,-61806.4712,0.0003919,2]
[393501458,1762735832797,-282.30533022,0.000392,120]
[393501459,1762735832807,-503.0,0.00039253,20]
[393501460,1762735832817,-200.0,0.00039254,7]
[393501461,1762735832828,-200.0,0.00039254,7]
[393501462,1762735832839,-153.0,0.00039254,7]
[393501463,1762735832851,-220.52220835,0.00039254,7]
[393501464,1762735832861,-150.0,0.00039254,7]
[393501465,1762735832871,-150.0,0.00039254,7]
[393501466,1762735832881,-150.0,0.00039258,20]
[393501467,1762735832891,-327.59556771,0.00039258,15]
[393501468,1762735832900,-315.38451648,0.00039259,15]
[393501469,1762735832911,-187.45981376,0.00039259,15]
[393501470,1762735832920,-170.38349046,0.00039259,15]
[393501471,1762735832930,-500.0,0.00039259,15]
[393501472,1762735832941,-185.87440466,0.00039259,15]
[393501473,1762735832960,-168.7012263,0.00039259,15]
[393501474,1762735832969,-1286.709833,0.00039259,7]
[393501475,1762735832979,-1286.709833,0.00039259,7]
[393501476,1762735832990,-1286.709833,0.00039259,7]
[393501477,1762735833000,-1286.709833,0.00039259,7]
[393501478,1762735833010,-1286.709833,0.00039259,7]
[393501479,1762735833021,-1286.709833,0.00039259,7]
[393501480,1762735833031,-1286.709833,0.00039259,7]
[393501481,1762735833042,-1286.709833,0.00039259,7]
[393501482,1762735833052,-1286.709833,0.00039259,7]
[393501483,1762735833061,-1286.709833,0.00039259,7]
[393501484,1762735833071,-1286.709833,0.00039259,7]
[393501485,1762735833327,-1286.709833,0.00039259,7]
[393501486,1762735833338,-1286.709833,0.00039259,7]
[393501487,1762735833347,-1286.709833,0.00039259,7]
[393501488,1762735833360,-1286.709833,0.00039259,7]
[393501489,1762735833374,-1286.709833,0.00039259,7]
[393501490,1762735833384,-1286.709833,0.00039259,7]
[393501491,1762735833394,-1286.709833,0.00039259,7]
[393501492,1762735833405,-1286.709833,0.00039259,7]
[393501493,1762735833416,-1286.70983,0.00039259,7]
[393501494,1762735833427,-151.0,0.00039259,120]
[393501495,1762735833436,-151.0,0.00039259,120]
[393501496,1762735833447,-151.0,0.00039259,120]
[393501497,1762735833458,-151.0,0.00039259,120]
[393501498,1762735833468,-180.51082,0.00039259,120]
[393501499,1762735833478,-151.0,0.00039259,120]
[393501500,1762735833488,-201.623736,0.00039259,120]
[393501501,1762735833498,-151.0,0.00039259,15]
[393501502,1762735833507,-151.0,0.00039259,15]
[393501503,1762735833517,-151.0,0.00039259,15]
[393501504,1762735833527,-151.0,0.00039259,30]
[393501505,1762735833538,-151.0,0.00039259,30]
[393501506,1762735833548,-224.845092,0.00039259,30]
[393501507,1762735833559,-151.0,0.00039259,120]
[393501508,1762735833570,-151.0,0.00039259,120]
[393501509,1762735833580,-600.30283161,0.00039259,29]
[393501510,1762735833591,-33262.13763034,0.00039259,7]